Cogmind - Beta 17.1 @@@ ROGUE MODE // 2026.09.18 @ 22:59:15 Player: MORONI274 Result: Destroyed by Guardian 4b with Flak Gun Performance ------------- Evolutions (3) 1500 Regions Visited (6) 1200 Robots Destroyed (41) 205 Value Destroyed (1256) 1256 Prototype IDs (28) 560 Alien Tech Used (0) 0 Bonus (467) 467 TOTAL SCORE: 5188 Bonus ------- Follower Combat Kills 167 Aligned with FarCom 300 Cogmind --------- Core Integrity 0/700 Matter 47/300 Energy 95/100 System Corruption 7% Temperature Cool (18) Movement Core (400) Ox7 Location -7/Factory Parts ------- > --- POWER (1) -------- (None) > --- PROPULSION (4) --- (None) > --- UTILITY (6) ------ Large Storage Unit Target Analyzer Hacking Suite > --- WEAPON (2) ------- Maul > --- INVENTORY (15) --- Light Nuclear Core Light Nuclear Core Micro Nuclear Core Advanced Weight Redist. System Advanced Visual Processing Unit Advanced Visual Processing Unit Seismic Detector Target Analyzer Shock Rifle Lightning Gun Gauss Rifle Flak Gun Advanced EMP Blaster Remote Datajack Peak State ------------ > --- POWER ------------ Micro Nuclear Core > --- PROPULSION ------- Medium Treads Medium Treads Armored Wheel > --- UTILITY ---------- Large Storage Unit Advanced ECM Suite Improved Power Shielding Layered Light Armor Plating Hacking Suite System Shield > --- WEAPON ----------- Shock Rifle Makeshift Shrapnel Gun > --- INVENTORY -------- Cooled Ion Engine Light Nuclear Core Light Nuclear Core Advanced Weight Redist. System Advanced Visual Processing Unit Advanced Visual Processing Unit Target Analyzer Lightning Gun Gauss Rifle Flak Gun Advanced EMP Blaster Remote Datajack Field Lobotomy Kit Maul [Rating: 44] Favorites ----------- Power Light Ion Engine Engine Light Ion Engine Power Core Micro Nuclear Core Propulsion Compact Wheel Treads Armored Treads Leg Aluminum Leg Wheel Compact Wheel Flight Unit Xenon Bombardment Thruster Utility Hardened Light Armor Plating Device Structural Scanner Storage Large Storage Unit Processor Target Analyzer Hackware Hacking Suite Protection Hardened Light Armor Plating Weapon Maul Energy Gun Shock Rifle Energy Cannon Cooled Particle Cannon Ballistic Gun Light Assault Rifle Launcher Advanced EMP Blaster Special Weapon Field Lobotomy Kit Impact Weapon Maul Slashing Weapon Katana Build | -11 -10 -10 -10 -9 -8 -7 ------- Run | Yrd Mat Min Exi Min Mat Fac Slots Evolved 6 | . . . . . 4 2 Power . | . . . . . . . Propulsion 2 | . . . . . 1 1 Utility 4 | . . . . . 3 1 Weapon . | . . . . . . . Parts Attached 61 | 6 3 2 . 9 13 28 Power 6 | 1 . . . 1 1 3 Engine 3 | 1 . . . 1 1 . Core 3 | . . . . . . 3 Reactor . | . . . . . . . Propulsion 17 | 2 1 2 . 4 1 7 Treads 5 | 2 . . . . 1 2 Leg 4 | . . . . 4 . . Wheel 4 | . . 2 . . . 2 Hover . | . . . . . . . Flight 4 | . 1 . . . . 3 Utility 21 | 1 2 . . 2 7 9 Device 6 | . . . . . 2 4 Storage 3 | 1 1 . . 1 . . Processor 1 | . . . . . . 1 Hackware 2 | . . . . . 2 . Protection 9 | . 1 . . 1 3 4 Artifact . | . . . . . . . Weapon 17 | 2 . . . 2 4 9 Energy Gun 3 | . . . . . . 3 Energy Cannon 1 | . . . . . . 1 Ballistic Gun 6 | 2 . . . 1 1 2 Ballistic Cannon . | . . . . . . . Launcher 3 | . . . . . 1 2 Special Weapon 1 | . . . . . . 1 Impact Weapon 2 | . . . . 1 1 . Slashing Weapon 1 | . . . . . 1 . Piercing Weapon . | . . . . . . . Special Melee Weapon . | . . . . . . . Unidentified Prototypes 5 | . 1 . . . 2 2 Parts Lost 28 | . . . . 2 . 26 Power 2 | . . . . 1 . 1 Propulsion 12 | . . . . 1 . 11 Utility 9 | . . . . . . 9 Weapon 5 | . . . . . . 5 Highest Loss Streak 13 | . . . . 1 . 13 To Critical Strikes . | . . . . . . . Average Backups 14 | 3 11 15 15 14 14 14 Power . | . 1 1 1 . . 1 Propulsion 1 | 2 4 4 4 2 . . Utility 4 | . 3 5 5 5 4 5 Weapon 5 | . 2 5 4 5 7 6 Tool/Special . | . . . . . . . Unused Backups 20 | . 3 . 1 . 4 12 Power 3 | . 1 . . . . 2 Propulsion 2 | . 1 . . . 1 . Utility 6 | . . . . . 1 5 Weapon 7 | . 1 . 1 . 2 3 Tool/Special 2 | . . . . . . 2 Average Slot Usage (%) 97 | . 98 100 100 99 97 93 Engine 9 | . 14 14 14 13 9 4 Treads 8 | . 28 11 28 . 6 9 Leg 8 | . . . . 26 4 . Wheel 8 | . . 16 . . 14 15 Device 3 | . . . . . 8 5 Storage 10 | . 14 14 14 14 9 7 Hackware 5 | . . . . . 1 14 Protection 17 | . 12 14 14 14 25 16 Ballistic Gun 12 | . 28 28 28 20 3 5 Impact Weapon 5 | . . . . 7 8 4 Slashing Weapon 1 | . . . . . 3 1 Peak Build Rating 44 | 6 12 10 10 15 29 44 Average Rating 22 | 5 8 10 10 14 24 35 On Entrance 11 | . 6 10 10 10 15 27 Avg Prop Armor Cover (%) 9 | . . . . . 8 10 Naked Turns . | . . . . . . . Heaviest Build 58 | 10 30 30 30 36 58 50 Greatest Support 56 | 40 40 40 40 40 26 56 Greatest Overweight (x) 14 | . . 1 . 1 2 14 Average Overweight (x) 1 | . . . . . 1 1 Largest Inventory Capacity 15 | 8 15 15 15 15 15 15 Average Capacity 14 | 7 14 15 15 15 15 15 Most Carried 15 | 6 15 15 15 15 15 15 Average Carried 14 | 3 11 15 15 14 14 14 Final Capacity 15 | 8 15 15 15 15 15 15 Final Carried 15 | 6 15 15 15 15 15 14 Class Distribution -------------------- 67% | Mutant 32% | Hacker-Mutant Dominant Class ---------------- Mutant | -10/Materials Mutant | -10/Mines Mutant | -10/Exiles Mutant | -9/Mines Mutant | -8/Materials Hacker-Mutant | -7/Factory Resources | -11 -10 -10 -10 -9 -8 -7 ----------- Run | Yrd Mat Min Exi Min Mat Fac Matter Collected 1190 | 212 105 . . 222 174 477 Remotely . | . . . . . . . Salvage Created 1305 | 3 190 . . 217 210 685 Parts 82 | 2 14 . . 15 13 38 Haulers Intercepted . | . . . . . . . Recyclers Shooed 1 | . 1 . . . . . Parts Field Recycled . | . . . . . . . Retrieved Matter . | . . . . . . . Parts Self-Destructed . | . . . . . . . Prevented . | . . . . . . . Parts Restored . | . . . . . . . Kills | -11 -10 -10 -10 -9 -8 -7 ------- Run | Yrd Mat Min Exi Min Mat Fac Combat Hostiles Destroyed 33 | . 4 . . 7 6 16 Melee 11 | . . . . 2 5 4 Guns 15 | . 4 . . 5 1 5 AOE 7 | . . . . . . 7 Classes Destroyed 9 | 1 1 . . 2 3 2 Worker 1 | 1 . . . . . . Builder 3 | . . . . . . 3 Recycler 3 | . . . . 1 . 2 Watcher 1 | . . . . . 1 . Swarmer 14 | . . . . 5 3 6 Grunt 10 | . 4 . . 2 1 3 Sentry 2 | . . . . . 1 1 Hunter 3 | . . . . . 1 2 Programmer 4 | . . . . . . 4 Best Kill Streak 6 | 1 2 . . 2 3 6 Combat Bots Only 6 | . 2 . . 2 3 6 Max Kills in Single Turn 2 | 1 1 . . 1 1 2 Gunslinging . | . . . . . . . Exploded 2 | . . . . . . 2 Melee 1 | . . . . 1 1 1 Uniques/NPCs Destroyed . | . . . . . . . Combat | -11 -10 -10 -10 -9 -8 -7 -------- Run | Yrd Mat Min Exi Min Mat Fac Hostile Shots Fired 568 | . 33 3 . 75 62 395 Missed 181 | . 10 2 . 25 14 130 Hits 387 | . 23 1 . 50 48 265 Melee 1 | . . 1 . . . . Projectile 386 | . 23 . . 50 48 265 Critical Strikes 8 | . 2 . . . 1 5 Damage Taken 4867 | . 349 28 . 509 432 3549 Core 921 | . 67 . . 99 52 703 Absorbed by Shields 30 | . . . . . . 30 Redirected to Shielding 103 | . . . . . . 103 Ignored by Resistances 214 | . . . . . 111 103 Regen/Repaired (Parts) 73 | . . . . . 73 . Core Remaining (%) 74 | 100 . . . 33 90 . Volleys Fired 124 | . 30 1 . 27 8 58 Largest 2 | . 2 2 . 2 1 2 Hottest 108 | . 40 40 . 40 23 108 Shots Fired 174 | . 60 2 . 37 8 67 Gun 153 | . 60 2 . 37 8 46 Cannon . | . . . . . . . Launcher 19 | . . . . . . 19 Special 2 | . . . . . . 2 Kinetic 139 | . 60 2 . 37 8 32 Thermal 8 | . . . . . . 8 Explosive 11 | . . . . . . 11 Electromagnetic 14 | . . . . . . 14 Robot Hit Streak 10 | . 10 2 . 6 7 8 Robot Miss Streak 5 | . 4 1 . 5 1 5 Penetration Max . | . . . . . . . Secondary Targets 1 | . 1 . . . . . Max Gunslinging Chain 1 | . 1 . . . . . Shots Hit Robots 137 | . 38 1 . 25 19 54 Core Hits 78 | . 14 1 . 11 8 44 Critical Kills 2 | . . . . 1 1 . Critical Parts Destroyed 4 | . . . . . 2 2 Critical Strikes 7 | . . . . 1 3 3 Corrupt 1 | . . . . . . 1 Smash 6 | . . . . 1 3 2 Melee Attacks 73 | . . . . 6 27 40 Impact 45 | . . . . 6 14 25 Slashing 28 | . . . . . 13 15 Piercing . | . . . . . . . Sneak Attacks 3 | . . . . 1 . 2 Combat Hostiles . | . . . . . . . Follow-up Attacks 1 | . . . . . 1 . Damage Inflicted 3028 | . 349 10 . 385 462 1822 Guns 1242 | . 349 9 . 252 87 545 Cannons . | . . . . . . . Explosions 779 | . . . . . . 779 Melee 986 | . . . . 123 375 488 Ramming 21 | . . 1 . 10 . 10 Kinetic 984 | . 349 9 . 252 87 287 Thermal 156 | . . . . . . 156 Explosive 531 | . . . . . . 531 Electromagnetic 350 | . . . . . . 350 Impact 532 | . . . . 123 219 190 Slashing 454 | . . . . . 156 298 Piercing . | . . . . . . . Highest Corruption 7 | . . . . . . 7 Average Corruption 2 | . . . . . . 2 Corruption Purged 2 | . . . . . . 2 Corruption Blocked . | . . . . . . . Effects 13 | . . . . . . 13 Message Errors 1 | . . . . . . 1 Matter Fused 7 | . . . . . . 7 Heat Flow Errors 2 | . . . . . . 2 Energy Discharges 1 | . . . . . . 1 Data Loss (minor) 1 | . . . . . . 1 Data Loss (major) 1 | . . . . . . 1 Overload Shots . | . . . . . . . Overflow Damage 269 | . . . . 37 72 160 Projectiles . | . . . . . . . Explosions 27 | . . . . . . 27 Melee 242 | . . . . 37 72 133 Knockbacks 1 | . . . . . . 1 Impact 1 | . . . . . . 1 Kinetic . | . . . . . . . Secondary . | . . . . . . . Self-Inflicted Damage 204 | . . . . . . 204 Shots 11 | . . . . . . 11 Rammed 2 | . . 1 . . . 1 Targets Rammed 6 | 1 . 1 . 3 . 1 Kicked 3 | . . . . 3 . . Crushed 1 | 1 . . . . . . Highest Temperature 439 | . 147 10 . 106 15 439 Average Temperature 92 | . 56 7 . 62 9 140 Received Heat Transfer 927 | . 234 . . 153 63 477 Effects 4 | . . . . . . 4 Shutdowns 1 | . . . . . . 1 Energy Bleed 1 | . . . . . . 1 Matter Decay 1 | . . . . . . 1 Short Circuit 1 | . . . . . . 1 Siege Activations . | . . . . . . . Martial Activations . | . . . . . . . Shielding Activations . | . . . . . . . Robots Disrupted . | . . . . . . . Combat Hostiles . | . . . . . . . Robots Corrupted 2 | . . . . 1 . 1 Combat Hostiles . | . . . . . . . Parts Fried 3 | . . . . . . 3 Impact Corruptions 8 | . . . . 2 2 4 Robots Melted . | . . . . . . . Combat Hostiles . | . . . . . . . Parts Melted . | . . . . . . . Heat Transferred 350 | . . . . . . 350 Parts Sabotaged . | . . . . . . . Parts Stolen . | . . . . . . . Parts Stripped . | . . . . . . . Power Chain Reactions 1 | . . . . . . 1 Alert | -11 -10 -10 -10 -9 -8 -7 ------- Run | Yrd Mat Min Exi Min Mat Fac Maximum Alert Level . | . . . . . . . Low Security (%) 100 | 100 100 100 . 100 100 100 Level 1 . | . . . . . . . Level 2 . | . . . . . . . Level 3 . | . . . . . . . Level 4 . | . . . . . . . Level 5 . | . . . . . . . High Security . | . . . . . . . Max Security . | . . . . . . . Peak Influence 179 | . 50 . . 74 75 179 Initial 3 | . 3 . . . . . Average 28 | . 13 . . 15 13 57 Influence Increases 1244 | 5 100 . . 270 177 692 Destroy 0b10 Robot/C 740 | . 80 . . 140 120 400 Destroy 0b10 Robot/NC 40 | 5 . . . 5 5 25 Destroy Leader 182 | . 20 . . 20 32 110 Allied During Kill 12 | . . . . . . 12 Successful Hack 4 | . . . . . . 4 Disable Machine 30 | . . . . . . 30 Destroy Structure 56 | . . . . . 5 51 Partial Spotted 15 | . . . . . . 15 Lose Combat Pursuer 165 | . . . . 105 15 45 Influence Decreases 1109 | . 105 . . 270 176 558 Entered New Map 3 | . 2 . . . . 1 Time Decay 836 | . 103 . . 260 176 297 Lost Part 270 | . . . . 10 . 260 Squads Dispatched 12 | . 2 . . . 1 9 Investigation 3 | . . . . . . 3 Extermination 3 | . . . . . . 3 Reinforcement 6 | . 2 . . . 1 3 Assault . | . . . . . . . Garrison . | . . . . . . . Intercept . | . . . . . . . Searches Triggered . | . . . . . . . Construction Impeded 2 | . . . . . . 2 Haulers Reinforced . | . . . . . . . Active Scanning Responses . | . . . . . . . Cargo Convoy Interrupts . | . . . . . . . Stealth | -11 -10 -10 -10 -9 -8 -7 --------- Run | Yrd Mat Min Exi Min Mat Fac Distress Signals 4 | . 1 . . . 1 2 Communications Jammed . | . . . . . . . Distress Signals . | . . . . . . . Times Spotted 65 | . 10 3 . 12 12 28 Peak Tracking Total 6 | . 5 3 . 4 4 6 Tactical Retreats 5 | . . . . 3 1 1 Traps | -11 -10 -10 -10 -9 -8 -7 ------- Run | Yrd Mat Min Exi Min Mat Fac Traps Triggered 1 | . . . . . . 1 Indirectly . | . . . . . . . Trap Hack Attempts . | . . . . . . . Triggered . | . . . . . . . Disarmed . | . . . . . . . Reprogrammed . | . . . . . . . Reused . | . . . . . . . Traps Extracted . | . . . . . . . Installed . | . . . . . . . Triggered . | . . . . . . . Machines | -11 -10 -10 -10 -9 -8 -7 ---------- Run | Yrd Mat Min Exi Min Mat Fac Machines Disabled 2 | . . . . . . 2 Max in Single Turn 1 | . . . . . . 1 Garrison Access 1 | . . . . . . 1 Machines Repaired . | . . . . . . . Machines Dismantled . | . . . . . . . Machines Sabotaged . | . . . . . . . Overloaded Fab Kills . | . . . . . . . Hacking | -11 -10 -10 -10 -9 -8 -7 --------- Run | Yrd Mat Min Exi Min Mat Fac Machines Accessed 12 | . . . 2 . 3 7 Terminals 7 | . . . . . 2 5 Fabricators . | . . . . . . . Repair Stations 1 | . . . . . 1 . Recycling Units . | . . . . . . . Scanalyzers 1 | . . . . . . 1 Garrison Access 1 | . . . . . . 1 Total Hacks 23 | . . . 2 . 5 16 Successful 14 | . . . 2 . 4 8 Failed 9 | . . . . . 1 8 Catastrophic 3 | . . . . . 1 2 Database Lockouts . | . . . . . . . Manual 5 | . . . 1 . 2 2 Terminals 14 | . . . . . 3 11 Fabricators . | . . . . . . . Repair Stations 2 | . . . . . 2 . Recycling Units . | . . . . . . . Scanalyzers 4 | . . . . . . 4 Garrison Access 1 | . . . . . . 1 Terminal Hacks 8 | . . . 2 . 2 4 Record 3 | . . . 1 . . 2 Emergency Access Points 1 | . . . . . 1 . Alert Level 2 | . . . . . 1 1 Hauler Manifests 1 | . . . . . . 1 Proto ID Catalog 1 | . . . 1 . . . Fabricator Hacks . | . . . . . . . Repair Station Hacks 2 | . . . . . 2 . Scan Component 1 | . . . . . 1 . Repair 1 | . . . . . 1 . Recycling Unit Hacks . | . . . . . . . Scanalyzer 3 | . . . . . . 3 Insert Component 2 | . . . . . . 2 Analyze 1 | . . . . . . 1 Garrison Access Hacks 1 | . . . . . . 1 Seal Access 1 | . . . . . . 1 Unauthorized Hacks . | . . . . . . . Terminals . | . . . . . . . Fabricators . | . . . . . . . Repair Stations . | . . . . . . . Recycling Units . | . . . . . . . Scanalyzers . | . . . . . . . Garrison Access . | . . . . . . . Data Cores Recovered . | . . . . . . . Used . | . . . . . . . Hacking Detections 6 | . . . . . 1 5 Full Trace Events 2 | . . . . . . 2 Feedback Events . | . . . . . . . Feedback Blocked . | . . . . . . . Robot Schematics Acquired . | . . . . . . . Robots Built . | . . . . . . . Authchips . | . . . . . . . Time . | . . . . . . . Total Robot Build Rating . | . . . . . . . Part Schematics Acquired 1 | . . . . . . 1 Parts Built . | . . . . . . . Authchips . | . . . . . . . Time . | . . . . . . . Total Part Build Rating . | . . . . . . . Part Studies Acquired . | . . . . . . . Parts Repaired 1 | . . . . . 1 . Time 32 | . . . . . 32 . Parts Recycled . | . . . . . . . Recycled Matter . | . . . . . . . Retrieved Matter . | . . . . . . . Retrieved Components . | . . . . . . . Parts Scanalyzed 1 | . . . . . . 1 Part Schematics Acquired 1 | . . . . . . 1 Parts Damaged . | . . . . . . . Bothacking | -11 -10 -10 -10 -9 -8 -7 ------------ Run | Yrd Mat Min Exi Min Mat Fac Used RIF Installer . | . . . . . . . Robots Hacked . | . . . . . . . Non-combat . | . . . . . . . Combat . | . . . . . . . Robot Hacks Applied . | . . . . . . . Relay Couplers Released . | . . . . . . . Fabnet Peak Effective % . | . . . . . . . Robots Rewired . | . . . . . . . Allies Hacked 1 | . . . . . . 1 Hacks Repelled . | . . . . . . . Allies | -11 -10 -10 -10 -9 -8 -7 -------- Run | Yrd Mat Min Exi Min Mat Fac Total Allies 2 | . . . . . . 2 Largest Group 2 | . . . . . . 2 Highest-Rated Group 64 | . . . . . . 64 Highest-Rated Ally 32 | . . . . . . 32 Total Orders . | . . . . . . . Ally Attacks 12 | . . . . . . 12 Total Damage 507 | . . . . . . 507 Kills 4 | . . . . . . 4 Allies Corrupted . | . . . . . . . Allies Melted 1 | . . . . . . 1 Field Lobotomies 2 | . . . . . . 2 Intel | -11 -10 -10 -10 -9 -8 -7 ------- Run | Yrd Mat Min Exi Min Mat Fac Active Infowar (turns) 2654 | . . . . . 1458 1196 Structural 2494 | . . . . . 1458 1036 Seismic 133 | . . . . . . 133 ECM 48 | . . . . . . 48 Robot Analysis Total . | . . . . . . . Derelict Logs Recovered 2 | . . 1 . 1 . . Drone Launches . | . . . . . . . Drone Recoveries . | . . . . . . . Exploration | -11 -10 -10 -10 -9 -8 -7 ------------- Run | Yrd Mat Min Exi Min Mat Fac Turns Passed 6406 | 105 412 172 431 1803 1500 1983 Spaces Moved 3729 | 59 195 133 269 778 938 1357 Core 6 | 4 . . . . . 2 Treads 649 | 55 195 38 269 15 . 77 Legs 907 | . . . . 763 144 . Wheels 2163 | . . 95 . . 794 1274 Hover . | . . . . . . . Flight 4 | . . . . . . 4 Fastest Speed 50 | 50 160 105 160 160 105 105 Average Speed 141 | 152 160 120 160 190 129 115 Slowest Speed 750 | 160 160 160 160 240 260 750 Overloaded Moves . | . . . . . . . Propulsion Burnouts . | . . . . . . . Robots Hopped . | . . . . . . . Potential Cave-ins . | . . . . . . . Cave-ins Triggered . | . . . . . . . Exploration Rate (%) 40 | 4 36 28 62 87 37 29 Regions Visited 6 Branch Regions 3 Pre-discovered Areas 1 | . . 1 . . . . Known Exits Taken . | . . . . . . . Unknown Exits Taken 6 | 1 1 1 1 1 1 . Scrap Searched 2 | . . . . 2 . . Spaces Dug 24 | . . . . . 5 19 Terrain Destroyed 56 | . . . . . 5 51 Melee 24 | . . . . . 5 19 Projectile . | . . . . . . . AOE 32 | . . . . . . 32 Terrain Rammed . | . . . . . . . Walls Destroyed . | . . . . . . . Machines Disabled . | . . . . . . . Actions | -11 -10 -10 -10 -9 -8 -7 --------- Run | Yrd Mat Min Exi Min Mat Fac Total 4568 | 71 247 141 270 1049 1171 1619 Wait 466 | . . 3 . 219 162 82 Move 3724 | 59 194 132 268 777 937 1357 Hop . | . . . . . . . Pick Up 51 | 6 13 . 1 4 12 15 Fast Attach 21 | 6 2 . . . 2 11 Attach 18 | . . . . 2 5 11 Detach 3 | . . . . . 1 2 Swap 49 | . 3 4 . 7 10 25 Drop 30 | . 5 . 1 4 9 11 Fire 124 | . 30 1 . 27 8 58 Melee 71 | . . . . 6 25 40 Ram 2 | . . 1 . . . 1 Kick 3 | . . . . 3 . . Crush . | . . . . . . . Escape Stasis 6 | . . . . . . 6 Rewire . | . . . . . . . Trap . | . . . . . . . Miscellaneous . | . . . . . . . Route ------- -11/Scrapyard -10/Materials -10/Mines -10/Exiles (discovered 2 exits: [*Min x2]) -9/Mines -8/Materials (discovered 2 exits: *Fac / *Sto) -7/Factory History --------- Turn | Location | Event 14 | -11/Scrapyard | Discovered new exit (range 15) 106 | -11/Scrapyard | Entered Materials 302 | -10/Materials | Build established: Mutant 470 | -10/Materials | Discovered new exit (range 16) 518 | -10/Materials | Entered Mines 529 | -10/Mines | Assembled infested the area 539 | -10/Mines | Learned location of 1 exit from Materials 609 | -10/Mines | Learned location of Storage (-8) 648 | -10/Mines | Met 8R-AWN 684 | -10/Mines | Discovered new exit (range 5) 690 | -10/Mines | Entered Exiles 721 | -10/Exiles | Discovered new exit (range 14) 758 | -10/Exiles | Welcomed by 8R-AWN 778 | -10/Exiles | Met EX-HEX 834 | -10/Exiles | Met EX-BIN 854 | -10/Exiles | Aligned with FarCom system 855 | -10/Exiles | Given EX-Vault access code 927 | -10/Exiles | Opened EX-Vault 958 | -10/Exiles | Found Field Lobotomy Kit 993 | -10/Exiles | Warned to stay clear of 0b10 Research branches 1047 | -10/Exiles | Met EX-DEC 1102 | -10/Exiles | Discovered new exit (range 14) 1121 | -10/Exiles | Left Exiles lab with Field Lobotomy Kit 1121 | -10/Exiles | Entered Mines 1136 | -9/Mines | Met a Derelict bent on vengeance 2032 | -9/Mines | Learned location of 1 exit from Lower Caves 2095 | -9/Mines | A weapon hastily lodged in a ceiling crevice suddenly fell to the ground 2236 | -9/Mines | Core integrity fell below 50% 2884 | -9/Mines | Discovered new exit (range 8) 2924 | -9/Mines | Entered Materials 2924 | -8/Materials | Evolved 4 slots: Propulsion x1, Utility x3 2925 | -8/Materials | Identified exit to Storage 4140 | -8/Materials | Repaired Hrd. Light Armor Plating 4393 | -8/Materials | Discovered new exit (range 10) 4424 | -8/Materials | Entered Factory 4424 | -7/Factory | Evolved 2 slots: Propulsion x1, Utility x1 4592 | -7/Factory | Build established: Hacker-Mutant 5895 | -7/Factory | Lost 6 parts (1n2u3w) 5925 | -7/Factory | Core integrity fell below 50% 6350 | -7/Factory | Assimilated Y-54 Guardian with FLK Orb 6367 | -7/Factory | Assimilated Y-54 Guardian with FLK Orb 6383 | -7/Factory | P-60 Hacker assimilated allied Guardian 4b 6399 | -7/Factory | Core integrity fell below 20% 6407 | -7/Factory | Destroyed by Guardian 4b with Flak Gun Last Messages --------------- 06384_ Penetrated by Slug. 06384_ Med. Treads destroyed. 06387_ Slug penetrates Wall. 06387_ Shock Absorption System destroyed. 06390_ R-06 Scavenger collects Welding Torch. 06390_ Slug penetrates Wall. 06391_ Guardian 4b reactivates. 06391_ Field Lobotomy Kit destroyed. 06391_ Acquired Xenon Bombardment Thruster. 06393_ Slug penetrates Nuclear Reactor. 06393_ Cld. Ion Engine destroyed. 06397_ &OL1PD2|QHX9R T#MI%5A|MFTI 06397_ Acquired Xenon Bombardment Thruster. 06398_ Nuclear Reactor explodes. 06398_ Fabricator disabled. 06399_ Xenon Bombardment Thruster destroyed. 06403_ Acquired Xenon Bombardment Thruster. 06404_ Xenon Bombardment Thruster destroyed. 06405_ U-05 Engineer lays Concrete. 06407_ Xenon Bombardment Thruster destroyed. Map ----- +----------------------------------------------------+ | ?????????????????????????????????????????????????? | | ?????????????????????????????????????????????????? | | ?????????????????????????????????????????????????? | | ?????????????????????????????????????????????????? | | ?????????????????????????????????????????????????? | | ?????????????????????????????????????????????????? | | ?????????????????????????????????????????????????? | | ?????????????????????????????????????????????????? | | ?????????????????????????????????????????????????? | | ?????????????????????????????????????????????????? | | ?????????????????????????????????????????????????? | | ?????????????????????????????????????????????????? | | ?????????????????????????????????????????????????? | | ?????????????????????????????????????????????????? | | ?????????????????????????????????????????????????? | | ?????????????????????????????????????????????????? | | ???????????????????###########???????????????????? | | ????????????######## ##??????????????????? | | ????????????# #?? ?????????????? | | ????????????# #?? ???????????? | | ????????????# #?? ???????????? | | ????????????# | #?? ?+??????????? | | ????????????# #?!! #??????????? | | ????????????# u "#?!! #??????????? | | ????????????# =YF"#? #??????????? | | ????????????# @=u "#? ???????????? | | ????????????# # u u""#? ????????????? | | ????????????####+##??# %p #? ?????? ?#????? | | ?????????????? #######+###? ?????? ##???? | | ????????????? [%! ##/####### #???? | | ???????????????# #???? | | ???????????????+ % #???? | | ???????????????# "" #???? | | ???????????????# w " [ #### ! #???? | | ???????????????# ######### #????????????? | | ?????????????????????????# #????????????? | | ?????????????????????????# #????????????? | | ?????????????????????????# !!! #????????????? | | ???????????????????????? + !! +????????????? | | ?????????????????????? # !! #????????????? | | ???????????????????? ! # %#######"#????????????? | | ???????????????????#####?# #??????%#????????????? | | ?????????????????????????# #?????? #????????????? | | ?????????????????????????# #???????#????????????? | | ?????????????????????????# #????????????????????? | | ?????????????????????????# #????????????????????? | | ?????????????????????????# #????????????????????? | | ???????????????? ????????# #######??????????????? | | ???????????????# ######### # #??????????????? | | ?????????????### # """ #??????????????? | +----------------------------------------------------+ Best States ------------- Heat Dissipation 34 Energy Generation 15 Energy Capacity 280 Matter Stores 300 Matter Capacity 300 Sight Range 16 Terrain Scan Density 10 ECM Strength 2 Armor Coverage 525 Resistance: KI 20 Power Shielding 66 Evasion (%) 40 Target Analysis 5 Recoil Reduction 2 Offensive Hacking 10 Defensive Hacking 10 Item Schematics ----------------- Grenade Launcher | -7/Factory | Scanalyzed Robot Schematics ------------------ None Fabricated ------------ Nothing Repaired ---------- Hrd. Light Armor Plating | 59% | -8/Materials Studied --------- None Alien Tech Used ----------------- None Achievements -------------- Part-time Excavator Challenges ------------ None Game ------ Seed InsulatedPointyProtection Manual? 0 Play Time 01:06:45 Cumulative 19.9 hours Start 2026.09.14 @ 01:23:09 End 2026.09.18 @ 22:59:15 Sessions 3 Manual Loads 0 Difficulty Rogue Special Mode None Game No. 42 Rogue 42 Adventurer 0 Explorer 0 Win Type - Total 0 Types 0/0/0/0/0/0/0/0/0/0 Lore% 12 Gallery% 19 Achievement% 17 Wizard Run 0 Options --------- Layout 1 ASCII 0 Keyboard 0 Movement Arrows Keybinds 0 Fullscreen 2 Font 24/Smallcaps Map View 50x35 Zoom Use 0% Tactical HUD 1 Map Filters NONE Filters NONE Steam 1 RUN: c36b7109-c5b2-4803-92a6-eb0f8345941b